bitfinex/quotes_ETHUSD_20250721
["timestamp","ask_amount","ask_price","bid_price","bid_amount"]
[1753072826759,0.002,3770.8,3770.7,7.59841921]
[1753072826963,0.002,3770.8,3770.7,6.38195335]
[1753072827163,0.002,3770.8,3770.7,4.97198082]
[1753072828369,0.002,3770.8,3770.7,9.03298082]
[1753072831262,0.002,3770.8,3770.7,9.16498082]
[1753072832365,0.002,3770.8,3770.7,5.10398082]
[1753072832659,0.002,3770.8,3770.7,9.16398082]
[1753072834303,2.65395792,3770.8,3770.3,0.7918]
[1753072834454,0.4536,3770.7,3770.2,0.132]
[1753072834657,2.65215947,3770.6,3770.2,0.132]
[1753072834989,3.10563721,3770.7,3770.2,0.132]
[1753072835359,0.4536,3770.7,3770.2,0.132]
[1753072835573,2.78598146,3770.8,3770.2,0.132]
[1753072835765,2.78598146,3770.8,3770.2,0.6062]
[1753072836051,0.134,3770.8,3770.2,0.6062]
[1753072836271,2.78602102,3770.8,3770.2,0.6062]
[1753072836675,0.134,3770.8,3770.2,0.94272293]
[1753072836893,0.134,3770.8,3770.3,0.4742]
[1753072837106,0.134,3770.8,3770.3,4.5342]
[1753072837289,0.134,3770.8,3770.4,0.4742]
[1753072837486,0.134,3770.8,3770.5,1.02189229]
[1753072837968,0.134,3770.8,3770.5,3.1263494]
[1753072838171,0.134,3770.8,3770.5,0.4742]
[1753072840325,0.134,3770.8,3770.3,6.71229266]
[1753072840736,0.134,3770.8,3770.4,0.4698]
[1753072841027,0.134,3770.8,3770.4,3.12203807]
[1753072841177,0.134,3770.8,3770.4,4.19975878]
[1753072841381,0.134,3770.8,3770.5,2.65215396]
[1753072841582,0.134,3770.8,3770.5,0.4698]
[1753072842831,0.134,3770.8,3770.4,1.07772071]
[1753072843032,0.134,3770.8,3770.3,4.06]
[1753072843333,0.134,3770.8,3770.4,3.12203594]
[1753072843632,0.134,3770.8,3770.4,7.18103594]
[1753072843792,0.002,3770.8,3770.7,6.30351921]
[1753072843986,0.002,3770.8,3770.7,6.43551921]
[1753072844211,0.002,3770.8,3770.7,6.90531921]
[1753072844419,0.002,3770.8,3770.7,12.40809222]
[1753072844823,0.002,3770.8,3770.7,15.40809222]
[1753072845127,0.002,3770.8,3770.7,16.22939222]
[1753072847885,0.002,3770.8,3770.7,8.04910048]
[1753072848208,0.002,3770.8,3770.7,6.45607301]
[1753072848529,0.002,3770.8,3770.7,5.63377301]
[1753072848945,0.002,3770.8,3770.7,1.57577301]
[1753072849239,0.002,3770.8,3770.7,4.058]
[1753072849417,0.002,3770.8,3770.7,2.65202747]
[1753072849599,0.002,3770.8,3770.7,4.5278]
[1753072849807,0.002,3770.8,3770.7,7.17982747]
[1753072850432,0.002,3770.8,3770.7,8.54137459]
[1753072850638,0.002,3770.8,3770.7,12.46597459]
[1753072853876,0.002,3770.8,3770.7,8.40797459]
[1753072854177,0.002,3770.8,3770.7,12.46597459]
[1753072861891,0.002,3770.8,3770.7,8.40797459]
[1753072862047,0.002,3770.8,3770.7,0.132]
[1753072862247,0.4646,3770.8,3770.4,0.132]
[1753072862494,0.4626,3770.7,3770.4,4.189]
[1753072862993,0.002,3770.8,3770.4,4.189]
[1753072863697,0.002,3770.8,3770.5,4.057]
[1753072863865,0.4626,3770.7,3770.5,4.057]
[1753072864578,2.6539661,3770.8,3770.5,4.057]
[1753072864748,0.4626,3770.6,3770.5,4.057]
[1753072864949,0.4626,3770.6,3770.4,4.189]
[1753072865667,0.002,3770.8,3770.6,0.7545]
[1753072865978,0.002,3770.8,3770.6,4.8115]
[1753072866278,0.002,3770.8,3770.6,3.40658392]
[1753072866520,0.002,3770.8,3770.7,4.057]
[1753072867060,0.002,3770.8,3770.7,4.5268]
[1753072867257,0.002,3770.8,3770.7,4.057]
[1753072868311,0.7639,3770.7,3770.5,2.65214319]
[1753072868603,0.002,3770.8,3770.5,2.65214319]
[1753072868817,0.002,3770.8,3770.6,4.057]
[1753072872211,0.4328,3770.8,3770.6,4.057]
[1753072872712,0.4328,3770.8,3770.6,4.056]
[1753072873057,0.002,3770.8,3770.4,0.132]
[1753072873261,0.4308,3770.7,3770.5,4.056]
[1753072873461,0.4308,3770.6,3770.5,4.056]
[1753072874082,0.4308,3770.6,3770.4,4.188]
[1753072874286,0.002,3770.8,3770.4,7.52437287]
[1753072874498,0.002,3770.8,3770.4,7.5243693]
[1753072874699,0.002,3770.8,3770.4,4.87213604]
[1753072874874,0.002,3770.8,3770.4,4.188]
[1753072876221,0.002,3770.8,3770.5,4.056]
[1753072876793,0.4328,3770.8,3770.5,4.056]
[1753072877329,0.002,3770.8,3770.5,4.056]
[1753072878341,0.002,3770.8,3770.4,0.132]
[1753072878629,0.002,3770.8,3770.5,5.3325]
[1753072878908,0.002,3770.8,3770.5,4.056]
[1753072879114,0.4328,3770.8,3770.5,4.056]
[1753072879610,3.08283882,3770.7,3770.4,0.132]
[1753072879812,0.4308,3770.6,3770.4,4.188]
[1753072880313,2.65203882,3770.7,3770.4,0.132]
[1753072880481,0.4308,3770.6,3770.4,0.132]
[1753072880981,0.4308,3770.5,3770.4,0.132]
[1753072882592,2.652037,3770.7,3770.4,0.132]
[1753072882783,0.8077,3770.8,3770.4,4.46763637]
[1753072882988,0.002,3770.8,3770.5,0.4475]
[1753072883289,0.002,3770.8,3770.4,4.46763637]
[1753072883923,0.002,3770.8,3770.4,7.56734646]
[1753072884117,0.002,3770.8,3770.5,3.09966095]
[1753072884320,0.002,3770.8,3770.6,0.75682973]
[1753072884618,0.002,3770.8,3770.7,2.65202747]
[1753072885022,0.002,3770.8,3770.7,3.85262747]
[1753072885315,0.002,3770.8,3770.7,3.87914774]
[1753072885521,0.002,3770.8,3770.7,3.85262747]
[1753072885718,0.002,3770.8,3770.7,5.41795292]
[1753072886489,0.002,3770.8,3770.7,8.27335292]
[1753072887814,0.002,3770.8,3770.7,8.72085292]
[1753072888215,0.002,3770.8,3770.7,4.66485292]
[1753072888421,0.002,3770.8,3770.7,8.72085292]
[1753072889321,0.002,3770.8,3770.7,12.49485292]
[1753072892261,1e-08,3770.8,3770.7,12.49485292]
[1753072892623,1e-08,3770.8,3770.7,17.80485292]
[1753072895158,0.002,3771.1,3771.0,6.99141649]
[1753072895345,0.002,3771.1,3771.0,17.42345628]
[1753072895541,0.002,3771.1,3771.0,18.00295628]
[1753072897543,0.002,3771.1,3771.0,13.94895628]
[1753072897879,0.002,3771.1,3771.0,17.71145628]
[1753072898173,0.002,3771.1,3771.0,18.11396454]
[1753072898378,0.002,3771.1,3771.0,13.27036454]
[1753072898891,0.002,3771.1,3771.0,17.32436454]
[1753072901380,0.002,3771.1,3771.0,10.94494731]
[1753072901541,0.002,3771.1,3771.0,14.99894731]
[1753072901871,0.446,3771.1,3771.0,0.53313082]
[1753072902176,0.446,3771.1,3770.3,4.10699174]
[1753072902177,2.65204167,3770.7,3770.3,0.001]
[1753072902340,0.7621,3770.8,3770.3,0.001]
[1753072902648,0.444,3770.6,3770.3,0.001]
[1753072903386,3.41433848,3770.4,3770.3,0.001]
[1753072903740,1.2061,3770.4,3770.3,0.001]
[1753072905179,0.8147,3770.7,3770.4,2.65223848]
[1753072905400,0.132,3770.8,3770.4,2.65223848]
[1753072906470,0.132,3770.8,3770.3,6.70729491]
[1753072906783,0.8147,3770.9,3770.3,4.055]
[1753072906989,0.132,3771.0,3770.4,0.132]
[1753072907209,0.002,3771.1,3770.7,0.132]
[1753072907557,0.446,3771.1,3770.7,0.132]
[1753072907777,0.002,3771.1,3770.7,0.132]
[1753072908061,0.444,3771.0,3770.7,2.7840193]
[1753072908793,0.444,3771.0,3770.7,0.132]
[1753072909458,0.444,3770.9,3770.7,0.132]
[1753072909656,0.444,3770.8,3770.7,0.132]
[1753072910590,3.09596816,3770.8,3770.4,0.132]
[1753072910770,3.84957707,3770.7,3770.3,0.001]
[1753072910972,3.98157707,3770.7,3770.3,0.001]
[1753072911192,0.444,3770.6,3770.3,0.001]
[1753072911687,0.8855,3770.7,3770.3,0.001]
[1753072911889,0.002,3771.1,3770.5,2.65211242]
[1753072912092,0.002,3771.1,3770.5,0.132]
[1753072912394,0.002,3771.1,3770.8,2.6519029]
[1753072912967,0.002,3771.1,3770.9,2.65187636]
[1753072913166,0.002,3771.1,3770.7,3.10645842]
[1753072913366,0.002,3771.1,3770.8,3.24099135]
[1753072913573,0.002,3771.1,3770.9,2.65188681]
[1753072913913,0.002,3771.1,3771.0,2.65181649]
[1753072914575,0.002,3771.1,3771.0,7.99383465]
[1753072914886,0.002,3771.1,3771.0,7.96731649]
[1753072915090,0.002,3771.1,3771.0,9.10134797]
[1753072916470,0.002,3771.1,3771.0,12.10134797]
[1753072917411,1e-08,3771.1,3771.0,12.65134797]
[1753072919003,1e-08,3771.1,3771.0,8.59734797]
[1753072919295,1e-08,3771.1,3771.0,12.65034797]
[1753072919964,1e-08,3771.1,3771.0,8.59734797]
[1753072920170,1e-08,3771.1,3771.0,12.65034797]
[1753072925401,0.002,3771.6,3771.5,6.41896493]
[1753072925621,0.002,3771.6,3771.5,11.37801655]
[1753072925914,0.002,3771.6,3771.5,11.96451655]
[1753072926091,0.002,3771.6,3771.5,17.27451655]
[1753072926974,0.002,3771.6,3771.5,13.22251655]
[1753072927403,0.002,3771.6,3771.5,17.27451655]
[1753072927982,0.002,3771.6,3771.5,12.67251655]
[1753072928278,0.002,3771.6,3771.5,16.72451655]
[1753072928500,0.002,3771.6,3771.5,12.67251655]
[1753072928715,0.002,3771.6,3771.5,16.72451655]
[1753072929814,0.002,3771.6,3771.5,17.27451655]
[1753072930112,0.002,3771.9,3771.8,6.20125404]
[1753072930313,0.002,3771.9,3771.8,17.27096502]
[1753072930511,0.002,3771.9,3771.8,17.40296502]
[1753072930689,0.002,3771.9,3771.8,17.84356502]
[1753072931495,0.002,3771.9,3771.8,18.62836502]
[1753072937424,1e-08,3771.9,3771.8,18.62836502]
[1753072937596,0.04,3772.9,3772.8,6.42045131]
[1753072937801,0.04,3772.9,3772.8,10.4793062]
[1753072937997,0.04,3772.9,3772.8,6.4283062]
[1753072938197,0.4957,3772.9,3772.8,10.4793062]
[1753072938409,0.04,3772.9,3772.8,10.4793062]
[1753072939017,0.4957,3772.9,3772.8,9.70155131]
[1753072939520,0.4957,3772.9,3772.8,5.65055131]
[1753072939521,0.04,3772.9,3772.8,5.65055131]
[1753072939702,0.04,3772.9,3772.8,9.70155131]
[1753072941638,0.04,3772.9,3772.8,6.70155131]
[1753072941801,0.4957,3772.9,3772.8,6.70155131]
[1753072941997,0.4957,3772.9,3772.8,2.65055131]
[1753072941998,1.3133,3772.9,3772.8,2.65055131]
[1753072942194,1.3133,3772.9,3771.8,2.69831098]
[1753072942391,0.4557,3772.8,3772.6,2.65064261]
[1753072942689,0.8576,3772.9,3772.6,2.65064261]
[1753072942690,0.04,3772.9,3772.8,2.65055131]
[1753072943233,0.04,3772.9,3772.8,6.70155131]
[1753072943924,0.002,3773.5,3773.4,2.65012985]
[1753072944126,0.002,3773.5,3773.4,6.72763114]
[1753072944313,0.002,3773.5,3773.4,8.12357442]
[1753072944627,1e-08,3773.5,3773.4,11.92907442]
[1753072944922,1.2547,3774.8,3774.7,2.64921715]
[1753072946125,1.2547,3774.8,3774.1,3.0]
[1753072946306,1.2547,3774.8,3774.6,2.64927108]
[1753072946502,0.799,3774.8,3774.7,2.64921715]
[1753072946702,1.2547,3774.8,3774.5,2.64934448]
[1753072946928,0.4557,3774.7,3774.5,2.64934448]
[1753072947128,0.4557,3774.7,3773.4,3.98184457]
[1753072947303,0.4557,3774.7,3773.7,3.0]
[1753072947304,0.7733,3774.6,3773.7,3.0]
[1753072947506,2.78152491,3774.3,3773.7,0.132]
[1753072947701,0.8305,3774.1,3773.7,0.132]
[1753072948224,0.4557,3774.0,3773.7,2.78190923]
[1753072948414,0.8042,3774.4,3773.8,4.052]
[1753072948722,1.2599,3774.4,3774.2,0.132]
[1753072949223,0.4557,3774.3,3774.2,0.132]
[1753072949604,0.8042,3774.4,3774.2,0.132]
[1753072949809,0.4557,3774.6,3774.2,2.78156035]
[1753072950009,0.4557,3774.6,3774.2,0.132]
[1753072950423,0.4557,3774.5,3774.2,0.132]
[1753072951814,0.4557,3774.4,3774.2,0.132]
[1753072952238,3.45002917,3774.7,3774.2,0.132]
[1753072952432,0.4557,3774.3,3774.2,0.132]
[1753072953039,0.4557,3774.6,3774.2,0.132]
[1753072953417,0.4557,3774.5,3774.2,0.132]
[1753072954019,0.4557,3774.4,3774.2,0.132]
[1753072954635,0.4557,3774.3,3774.2,0.132]
[1753072954840,3.45003661,3774.7,3774.2,0.132]
[1753072955036,3.45004465,3774.7,3774.2,0.132]
[1753072955240,0.4557,3774.3,3774.2,0.132]
[1753072956214,0.7528,3774.2,3773.9,4.051]
[1753072956413,0.4557,3774.1,3773.9,4.183]
[1753072956659,0.7528,3774.5,3773.9,4.183]
[1753072956830,1.2085,3774.5,3773.9,6.83274514]
[1753072957233,1.2085,3774.5,3773.9,4.183]
[1753072957234,3.85786314,3774.5,3773.9,4.183]
[1753072957538,0.4557,3774.4,3773.9,0.132]
[1753072957706,2.64952389,3774.3,3773.9,0.132]
[1753072957910,0.4557,3774.2,3773.9,0.132]
[1753072958117,2.64952389,3774.3,3773.9,0.132]
[1753072958317,0.4557,3774.2,3773.9,0.132]
[1753072958514,0.4557,3774.1,3773.9,0.132]
[1753072958927,0.4557,3774.0,3773.9,0.132]
[1753072959711,0.7514,3773.9,3773.3,3.0]
[1753072959921,0.4557,3773.8,3773.5,0.132]
[1753072960346,0.7514,3773.9,3773.5,0.132]
[1753072960845,0.7514,3773.9,3773.5,2.78203758]
[1753072961147,0.4416,3773.9,3773.6,2.6499894]
[1753072961353,0.4416,3773.9,3773.5,2.78201087]
[1753072961520,0.8124,3774.1,3773.5,0.132]
[1753072961721,1.254,3774.4,3773.5,1.7872902]
[1753072961919,0.4416,3774.7,3774.2,2.64953314]
[1753072962123,0.4416,3774.7,3774.3,2.64948184]
[1753072962329,0.9444,3774.8,3774.2,0.132]
[1753072962550,0.04,3774.9,3774.7,2.64921715]
[1753072963233,0.04,3774.9,3774.8,2.64914697]
[1753072963556,0.04,3774.9,3774.7,2.64919399]
[1753072963760,0.04,3774.9,3774.5,2.78134632]
[1753072964053,0.04,3774.9,3774.6,2.64923835]
[1753072965044,0.04,3774.9,3774.7,2.6492037]
[1753072965238,0.04,3774.9,3774.6,2.64927418]
[1753072965658,0.04,3774.9,3774.7,2.64921306]
[1753072967070,0.042,3774.9,3774.7,2.64921306]
[1753072967277,0.042,3774.9,3774.6,2.64926884]
[1753072967444,0.4416,3774.8,3774.5,2.78133658]
[1753072967645,0.4416,3774.8,3774.5,6.83233658]
[1753072967845,0.4416,3774.8,3774.6,2.64927511]
[1753072968544,0.4416,3774.7,3774.4,4.051]
[1753072968740,0.174,3774.9,3774.4,4.051]
[1753072968961,0.174,3774.9,3774.6,2.64924617]
[1753072969185,0.6156,3774.9,3774.6,2.64924617]
[1753072969559,0.6156,3774.9,3774.7,2.6492049]
[1753072969762,0.042,3774.9,3774.8,2.64914697]
[1753072970464,0.042,3774.9,3774.8,3.64541879]
[1753072970661,0.042,3774.9,3774.8,4.44721879]
[1753072971045,0.042,3774.9,3774.8,9.08401879]
[1753072971272,0.042,3774.9,3774.8,8.62821879]
[1753072971479,0.042,3774.9,3774.8,9.08401879]
[1753072971863,0.042,3774.9,3774.8,7.82641879]
[1753072972056,0.042,3774.9,3774.8,0.132]
[1753072972577,0.042,3774.9,3774.8,3.90674697]
[1753072973074,0.042,3774.9,3774.8,3.93323843]
[1753072973376,0.042,3774.9,3774.8,6.93323843]
[1753072973581,0.042,3774.9,3774.8,6.90674697]
[1753072973776,0.042,3774.9,3774.8,8.26724842]
[1753072973982,0.042,3774.9,3774.8,12.31624842]
[1753072974954,0.042,3774.9,3774.8,12.86624842]
[1753072975157,0.042,3774.9,3774.8,4.00964842]
[1753072975369,0.042,3774.9,3774.8,3.10494697]
[1753072975547,0.042,3774.9,3774.8,2.64914697]
[1753072975749,0.042,3774.9,3774.5,2.64929756]
[1753072975967,1.1919,3774.8,3774.3,3.0]
[1753072976172,0.4416,3774.7,3774.3,3.0]
[1753072976372,0.4416,3774.7,3774.2,4.056]
[1753072976568,3.09090515,3774.6,3773.9,2.64977639]
[1753072976854,0.4416,3774.5,3773.9,2.99311487]
[1753072977051,0.4416,3774.5,3773.9,3.34335764]
[1753072977655,0.4416,3774.5,3773.9,10.04912311]
[1753072978459,3.09096149,3774.5,3773.9,7.39935764]
[1753072978987,0.7503,3774.8,3773.9,7.39935764]
[1753072979204,0.7503,3774.8,3774.3,2.64944804]
[1753072979693,0.7503,3774.8,3774.4,2.64942068]
[1753072979902,1.1919,3774.8,3774.4,2.64942068]
[1753072980193,1.1919,3774.8,3774.2,2.64956812]
[1753072980500,0.4416,3774.7,3774.0,0.73993576]
[1753072980701,0.4416,3774.7,3774.1,2.64963045]
[1753072980892,0.4416,3774.7,3774.2,2.6495578]
[1753072981430,0.4416,3774.7,3774.3,2.64948349]
[1753072981865,0.4416,3774.7,3774.1,2.64963832]
[1753072982201,0.4416,3774.7,3773.9,4.054]
[1753072982503,0.042,3774.9,3774.5,0.132]
[1753072982884,0.042,3774.9,3774.6,2.64922188]
[1753072983094,0.042,3774.9,3774.7,2.64917066]
[1753072983295,0.042,3774.9,3774.6,2.64927371]
[1753072983710,0.042,3774.9,3774.5,3.23713726]
[1753072983909,0.042,3774.9,3774.5,2.78133726]
[1753072984073,0.042,3774.9,3774.5,0.132]
[1753072984611,0.4416,3774.8,3774.5,0.132]
[1753072984813,2.69109731,3774.9,3774.5,0.132]
[1753072984975,0.4416,3774.7,3774.5,0.132]
[1753072985601,0.4416,3774.7,3774.0,2.64970852]
[1753072985813,0.042,3774.9,3774.4,2.64939032]
[1753072986017,0.042,3774.9,3774.4,2.78139032]
[1753072986391,0.4836,3774.9,3774.4,2.78139032]
[1753072986902,0.4836,3774.9,3774.4,0.132]
[1753072986903,2.69114225,3774.9,3774.4,0.132]
[1753072987107,0.4416,3774.8,3774.4,0.132]
[1753072987490,0.4416,3774.7,3774.4,0.132]
[1753072988724,0.4416,3774.6,3772.8,0.20340988]
[1753072988889,2.64942772,3774.4,3773.9,0.132]
[1753072989078,0.4416,3774.3,3773.9,0.133]
[1753072989697,0.4416,3774.2,3773.9,0.133]
[1753072990506,5.391,3774.5,3773.9,0.133]
[1753072990712,7.58626993,3774.5,3773.9,0.133]
[1753072990909,8.04036993,3774.5,3773.9,2.78277332]
[1753072991109,5.391,3774.5,3773.9,2.78277332]
[1753072991612,5.39,3774.5,3773.9,2.78277332]
[1753072991836,8.03937328,3774.5,3773.9,2.78277332]
[1753072992130,2.6494323,3774.4,3773.9,0.133]
[1753072992298,2.64962253,3774.2,3773.9,0.001]
[1753072992499,0.132,3774.1,3773.9,0.001]
[1753072992704,3.23575523,3774.1,3773.9,0.001]
[1753072992925,0.4541,3774.0,3773.9,0.001]
[1753072994118,0.132,3774.1,3773.9,0.001]
[1753072994996,2.78164342,3774.1,3773.9,0.001]
[1753072995212,0.5861,3774.1,3773.9,0.001]
[1753072998923,0.132,3774.1,3773.9,0.001]
[1753072999632,0.8604,3774.9,3774.0,0.8265]
[1753072999832,0.4541,3774.8,3774.0,0.4349]
[1753073000006,0.4541,3774.8,3773.9,0.001]
[1753073000205,2.64938433,3774.5,3773.9,0.001]
[1753073000631,3.10354559,3774.4,3773.9,0.001]
[1753073000833,7.1535534,3774.4,3773.9,0.001]
[1753073001032,6.6994534,3774.4,3773.9,0.001]
[1753073001236,0.4541,3774.3,3773.9,2.65077023]
[1753073001601,4.05,3774.4,3773.9,0.4359]
[1753073002120,4.05,3774.4,3774.1,2.64962511]
[1753073002544,0.8511,3774.9,3774.2,3.08446812]
[1753073002750,4.05,3774.5,3774.4,2.64939791]
[1753073003442,0.042,3774.9,3774.4,2.64939791]
[1753073003643,4.092,3774.9,3774.6,2.6492771]
[1753073004014,0.042,3774.9,3774.5,3.08424084]
[1753073004209,0.04,3775.9,3775.1,0.55]
[1753073004430,0.04,3775.9,3775.8,2.64844536]
[1753073006336,0.04,3775.9,3775.8,7.14534536]
[1753073007564,0.04,3775.9,3775.8,6.71044536]
[1753073007855,0.04,3775.9,3775.8,7.64534345]
[1753073008452,0.04,3775.9,3775.8,8.08024345]
[1753073008825,0.04,3775.9,3775.8,7.64334345]
[1753073009354,0.04,3775.9,3775.8,8.83564345]
[1753073009519,0.04,3775.9,3775.8,11.83564345]
[1753073009853,0.04,3775.9,3775.8,11.96764345]
[1753073011121,0.042,3775.9,3775.8,7.90864345]
[1753073011521,0.042,3775.9,3775.8,11.96764345]
[1753073011751,0.042,3775.9,3775.8,7.90864345]
[1753073011959,0.042,3775.9,3775.8,11.96764345]
[1753073012247,0.042,3775.9,3775.8,11.96664345]
[1753073012554,1e-08,3775.9,3775.8,11.96664345]
[1753073015154,1e-08,3775.9,3775.8,7.90864345]
[1753073015358,1e-08,3775.9,3775.8,7.47374345]
[1753073015565,1e-08,3775.9,3775.8,11.96564345]
[1753073016140,0.16411757,3777.1,3776.6,2.64787265]
[1753073016538,0.4541,3777.0,3776.6,2.64787265]
[1753073017369,0.4541,3777.0,3776.5,4.19]
[1753073017739,0.4541,3777.0,3776.5,6.83792581]
[1753073018367,0.4541,3776.9,3776.5,6.83792581]
[1753073018663,2.81165408,3777.1,3776.5,6.83792581]
[1753073018664,2.64765218,3777.0,3776.5,0.132]
[1753073018868,3.10175218,3777.0,3776.5,0.132]
[1753073019167,0.16411757,3777.1,3776.5,0.132]
[1753073019168,0.2527,3777.7,3776.6,1.21627884]
[1753073019381,0.132,3777.8,3777.4,2.64726755]
[1753073019870,0.132,3777.8,3777.3,2.77937175]
[1753073019871,0.4541,3777.7,3777.3,2.77937175]
[1753073020168,0.4541,3777.7,3777.3,0.132]
[1753073020370,0.4541,3777.7,3777.3,2.77938835]
[1753073020875,0.4541,3777.7,3777.3,0.132]
[1753073021172,0.4297,3777.6,3777.3,0.132]
[1753073021666,0.132,3777.8,3777.3,0.132]
[1753073022294,0.132,3777.8,3777.3,2.77937466]
[1753073022502,0.4297,3777.7,3777.3,0.132]
[1753073022703,0.4297,3777.6,3777.1,2.64748574]
[1753073023194,0.4297,3777.6,3777.0,4.193]
[1753073023195,0.4297,3777.5,3777.0,0.132]
[1753073023406,0.4297,3777.4,3777.0,0.132]
[1753073023559,3.07714229,3777.3,3777.0,0.132]
[1753073023765,0.6824,3777.2,3776.7,2.77981238]
[1753073024092,0.6824,3777.2,3776.8,2.64773268]
[1753073024278,0.132,3777.4,3776.8,3.66505638]
[1753073024788,0.4297,3777.3,3776.7,0.132]
[1753073024989,0.4697,3777.9,3776.9,2.64767401]
[1753073025293,3.24872439,3777.9,3777.3,0.132]
[1753073026003,0.04,3777.9,3777.4,0.27794363]
[1753073026164,0.04,3777.9,3777.8,2.77904325]
[1753073026908,0.04,3777.9,3777.8,0.132]
[1753073028164,0.4697,3777.9,3777.8,0.132]
[1753073028912,0.4697,3777.9,3777.2,0.7875]
[1753073028913,2.8997582,3777.8,3777.3,0.132]
[1753073029078,0.4297,3777.7,3776.9,2.64767191]
[1753073029281,0.4297,3777.7,3776.9,0.81678719]
[1753073029465,2.77930005,3777.5,3776.9,0.94878719]
[1753073029661,0.132,3777.5,3776.9,0.132]
[1753073029964,4.199,3777.5,3776.9,0.132]
[1753073030264,0.132,3777.5,3777.1,2.64752968]
[1753073030593,0.4297,3777.5,3777.0,2.64755608]
[1753073030800,0.4297,3777.4,3777.0,0.132]
[1753073031098,0.4297,3777.3,3777.0,0.132]
[1753073031265,0.4297,3777.3,3777.0,2.77959345]
[1753073031578,6.84712416,3777.7,3777.1,2.64752944]
[1753073031785,0.4297,3777.6,3777.0,2.77958167]
[1753073031993,3.0768965,3777.6,3777.0,2.77958167]
[1753073032805,3.0768965,3777.6,3777.0,0.132]
[1753073033117,3.0768965,3777.6,3777.0,2.77959599]
[1753073033286,4.067,3777.5,3777.0,0.132]
[1753073033603,0.132,3777.7,3777.0,2.77958888]
[1753073034008,0.002,3777.5,3777.0,0.132]
[1753073034209,0.4297,3777.4,3776.5,2.64793848]
[1753073034505,2.64747708,3777.2,3776.8,0.132]
[1753073034673,0.4297,3777.1,3776.6,0.132]
[1753073034875,3.07723929,3777.1,3776.6,0.132]
[1753073035189,3.07725619,3777.1,3776.6,0.132]
[1753073035581,2.64761603,3777.0,3776.6,0.132]
[1753073035778,0.4297,3777.1,3776.6,0.132]
[1753073035984,3.07724443,3777.1,3776.6,0.132]
[1753073036289,0.4297,3777.0,3776.6,0.132]
[1753073036480,0.132,3776.8,3776.2,2.78015844]
[1753073036682,0.132,3776.8,3776.2,4.06483428]
[1753073036918,2.77975889,3776.8,3776.2,1.41667584]
[1753073037088,0.132,3776.8,3776.2,3.132]
[1753073037417,2.64797292,3776.5,3776.0,3.0]
[1753073037625,0.4297,3776.4,3776.0,0.132]
[1753073037790,2.7799018,3776.6,3776.0,0.132]
[1753073038191,0.132,3776.6,3776.0,0.132]
[1753073038493,0.132,3776.6,3776.0,3.3123384]
[1753073039914,0.132,3776.6,3776.0,3.66408981]
[1753073040432,0.132,3776.6,3776.0,0.66408981]
[1753073040606,2.64802457,3776.4,3776.0,0.132]
[1753073040806,0.4297,3776.3,3776.0,0.132]
[1753073041816,2.64796705,3776.5,3776.0,0.132]
[1753073042005,3.07766705,3776.5,3776.0,0.132]
[1753073042200,0.132,3776.6,3776.1,0.7564]
[1753073042405,6.71164324,3777.0,3776.3,2.64808742]
[1753073042624,0.132,3776.8,3776.4,0.4654]
[1753073042830,0.132,3776.8,3776.5,0.4654]
[1753073043035,0.6824,3777.3,3776.2,0.02648164]
[1753073043237,4.064,3777.2,3776.7,0.132]
[1753073043446,0.4297,3777.1,3776.3,0.7538]
[1753073043740,0.4297,3777.1,3776.5,0.132]
[1753073043741,2.6476917,3776.9,3776.5,0.132]
[1753073043922,3.07749119,3776.8,3776.0,0.7538]
[1753073044235,0.5617,3776.8,3776.1,0.132]
[1753073044403,2.64795513,3776.5,3775.8,3.001]
[1753073044609,0.132,3776.3,3775.8,4.61427374]
[1753073044808,0.132,3776.3,3775.9,2.64836306]
[1753073045535,0.132,3776.3,3775.8,4.61427374]
[1753073045723,0.132,3776.3,3775.9,2.64837522]
[1753073046439,0.132,3776.3,3776.0,2.64829278]
[1753073046949,0.132,3776.3,3775.8,7.72805206]
[1753073047258,0.132,3776.3,3775.9,2.64835515]
[1753073047421,0.132,3776.3,3775.9,3.65540306]
[1753073047825,0.132,3776.3,3776.0,2.64829635]
[1753073048026,0.132,3776.3,3775.9,1.00704791]
[1753073048265,0.132,3776.3,3775.9,3.65537609]
[1753073048435,0.132,3776.3,3775.9,1.00704791]
[1753073048759,0.5617,3776.3,3775.9,1.00704791]
[1753073048971,0.5617,3776.3,3775.9,3.6554165]
[1753073049152,4.067,3776.6,3776.1,2.64820797]
[1753073049328,4.067,3776.6,3776.1,0.132]
[1753073049869,0.2547,3777.5,3776.2,1.2798]
[1753073050070,0.132,3777.2,3776.5,0.132]
[1753073050566,2.64780619,3776.8,3776.4,0.132]
[1753073051029,6.71680619,3776.8,3776.4,0.132]
[1753073051224,3.09383965,3776.7,3776.2,0.132]
[1753073051463,2.64788479,3776.6,3776.2,0.132]
[1753073051841,4.201,3776.8,3775.8,0.001]
[1753073051842,0.6987,3776.5,3775.8,0.001]
[1753073052044,0.132,3776.2,3775.8,0.001]
[1753073052245,2.64824367,3776.1,3775.8,0.001]
[1753073052635,0.132,3776.2,3776.0,2.64828098]
[1753073052845,4.069,3776.6,3776.1,0.4326]